[Event "*** Titled Tuesday Blitz"]
[Site "Chess.com"]
[Date "2021.03.16"]
[Round "8"]
[White "DvaHrasta"]
[Black "Unknown_IM"]
[Result "1-0"]
[WhiteElo "2524"]
[BlackElo "2400"]
[TimeControl "180+1"]
[EndTime "11:29:32 PDT"]
[Termination "DvaHrasta won by checkmate"]

1. c4 {[%clk 0:03:00.9]} 1... c5 {[%clk 0:02:58.5]} 2. g3 {[%clk 0:03:00.7]}
2... g6 {[%clk 0:02:57.3]} 3. Bg2 {[%clk 0:03:00.8]} 3... Bg7 {[%clk 0:02:57.4]}
4. Nc3 {[%clk 0:03:00.6]} 4... Nc6 {[%clk 0:02:57.5]} 5. Nf3 {[%clk 0:03:00.3]}
5... d6 {[%clk 0:02:56.8]} 6. O-O {[%clk 0:02:58.7]} 6... e5 {[%clk 0:02:55.2]}
7. Ne1 {[%clk 0:02:56.6]} 7... Be6 {[%clk 0:02:49.4]} 8. Qa4 {[%clk 0:02:54.2]}
8... Ne7 {[%clk 0:02:44.4]} 9. Nc2 {[%clk 0:02:54.1]} 9... O-O {[%clk
0:02:20.3]} 10. Ne3 {[%clk 0:02:53.6]} 10... a6 {[%clk 0:02:16.1]} 11. Ned5
{[%clk 0:02:51.7]} 11... b5 {[%clk 0:02:09.6]} 12. cxb5 {[%clk 0:02:47.9]} 12...
axb5 {[%clk 0:02:06.6]} 13. Qxa8 {[%clk 0:02:47.5]} 13... Qxa8 {[%clk
0:01:54.5]} 14. Nxe7+ {[%clk 0:02:47.4]} 14... Kh8 {[%clk 0:01:47.5]} 15. Nxc6
{[%clk 0:02:47.3]} 15... Qa6 {[%clk 0:01:37.9]} 16. a4 {[%clk 0:02:37]} 16... b4
{[%clk 0:01:37.4]} 17. Nb5 {[%clk 0:02:23.7]} 17... d5 {[%clk 0:01:27.9]} 18.
Ne7 {[%clk 0:02:12.4]} 18... Qb7 {[%clk 0:01:25.4]} 19. Nxd5 {[%clk 0:02:01.8]}
19... Bxd5 {[%clk 0:01:24.8]} 20. Bxd5 {[%clk 0:02:01.2]} 20... Qxd5 {[%clk
0:01:25.7]} 21. d3 {[%clk 0:01:54.3]} 21... e4 {[%clk 0:01:13.4]} 22. dxe4
{[%clk 0:01:28.6]} 22... Qxe4 {[%clk 0:01:14.3]} 23. Be3 {[%clk 0:01:26]} 23...
Bxb2 {[%clk 0:01:08.6]} 24. Rab1 {[%clk 0:01:22.6]} 24... Bc3 {[%clk 0:00:55.7]}
25. Bxc5 {[%clk 0:01:15.8]} 25... Rc8 {[%clk 0:00:54.7]} 26. Nd6 {[%clk
0:01:11.4]} 26... Qc6 {[%clk 0:00:42.7]} 27. Nxc8 {[%clk 0:00:57.4]} 27... Qxc5
{[%clk 0:00:41.8]} 28. Rfc1 {[%clk 0:00:57.2]} 28... Kg7 {[%clk 0:00:20.1]} 29.
a5 {[%clk 0:00:53.5]} 29... h5 {[%clk 0:00:19.4]} 30. h4 {[%clk 0:00:47.5]}
30... Qxa5 {[%clk 0:00:07.9]} 31. Nb6 {[%clk 0:00:37.4]} 31... Bd4 {[%clk
0:00:04.1]} 32. Nc4 {[%clk 0:00:34.1]} 32... Qc7 {[%clk 0:00:04.4]} 33. e3
{[%clk 0:00:32.5]} 33... Bc5 {[%clk 0:00:03.5]} 34. Nd2 {[%clk 0:00:27.1]} 34...
Qe7 {[%clk 0:00:03.2]} 35. Nb3 {[%clk 0:00:23.3]} 35... Bxe3 {[%clk 0:00:03]}
36. Re1 {[%clk 0:00:20.4]} 36... Bxf2+ {[%clk 0:00:02.5]} 37. Kxf2 {[%clk
0:00:20.6]} 37... Qa7+ {[%clk 0:00:02.7]} 38. Kf1 {[%clk 0:00:18.8]} 38... Qa6+
{[%clk 0:00:02.4]} 39. Kg2 {[%clk 0:00:18.4]} 39... Qa2+ {[%clk 0:00:02.3]} 40.
Kh3 {[%clk 0:00:18.3]} 40... Qc2 {[%clk 0:00:02.8]} 41. Nd4 {[%clk 0:00:17.2]}
41... Qd3 {[%clk 0:00:03.1]} 42. Ne2 {[%clk 0:00:15.4]} 42... b3 {[%clk
0:00:02.7]} 43. Nf4 {[%clk 0:00:14.7]} 43... Qf5+ {[%clk 0:00:02.7]} 44. Kg2
{[%clk 0:00:14.1]} 44... Qc2+ {[%clk 0:00:02.9]} 45. Kg1 {[%clk 0:00:13.4]}
45... b2 {[%clk 0:00:03.3]} 46. Ng2 {[%clk 0:00:12.1]} 46... Qc5+ {[%clk
0:00:03.4]} 47. Ne3 {[%clk 0:00:11.1]} 47... Qd4 {[%clk 0:00:03.7]} 48. Re2
{[%clk 0:00:10.1]} 48... Qd3 {[%clk 0:00:03.1]} 49. Rbxb2 {[%clk 0:00:10.3]}
49... Qd4 {[%clk 0:00:02.1]} 50. Kh2 {[%clk 0:00:10.4]} 50... Qd3 {[%clk
0:00:01.5]} 51. Rbd2 {[%clk 0:00:10.4]} 51... Qe4 {[%clk 0:00:01.2]} 52. Ng2
{[%clk 0:00:10.5]} 52... Qa8 {[%clk 0:00:02.1]} 53. Rf2 {[%clk 0:00:10.4]} 53...
Qa1 {[%clk 0:00:02.8]} 54. Rd7 {[%clk 0:00:09.7]} 54... Qa2 {[%clk 0:00:03.3]}
55. Rdxf7+ {[%clk 0:00:09.9]} 55... Qxf7 {[%clk 0:00:03.7]} 56. Rxf7+ {[%clk
0:00:09.5]} 56... Kxf7 {[%clk 0:00:04.6]} 57. Nf4 {[%clk 0:00:09.8]} 57... Kf6
{[%clk 0:00:05.5]} 58. Nh3 {[%clk 0:00:10.3]} 58... Kf5 {[%clk 0:00:06.4]} 59.
Ng5 {[%clk 0:00:11.1]} 59... Kg4 {[%clk 0:00:06.8]} 60. Kg2 {[%clk 0:00:12]}
60... Kf5 {[%clk 0:00:07.7]} 61. Kf3 {[%clk 0:00:12.2]} 61... Ke5 {[%clk
0:00:07.8]} 62. g4 {[%clk 0:00:11.8]} 62... Kf6 {[%clk 0:00:08.7]} 63. gxh5
{[%clk 0:00:11.2]} 63... gxh5 {[%clk 0:00:09.4]} 64. Kf4 {[%clk 0:00:12.1]}
64... Kg6 {[%clk 0:00:09.8]} 65. Nf3 {[%clk 0:00:12.4]} 65... Kf6 {[%clk
0:00:10.7]} 66. Nd4 {[%clk 0:00:12.4]} 66... Kg6 {[%clk 0:00:11.6]} 67. Ke5
{[%clk 0:00:12.8]} 67... Kh6 {[%clk 0:00:11.8]} 68. Kf5 {[%clk 0:00:13.2]} 68...
Kg7 {[%clk 0:00:12.7]} 69. Kg5 {[%clk 0:00:13.6]} 69... Kh7 {[%clk 0:00:12.3]}
70. Kxh5 {[%clk 0:00:14.1]} 70... Kg7 {[%clk 0:00:13.2]} 71. Kg5 {[%clk
0:00:14.5]} 71... Kh8 {[%clk 0:00:14.1]} 72. h5 {[%clk 0:00:15]} 72... Kg8
{[%clk 0:00:15]} 73. h6 {[%clk 0:00:15.5]} 73... Kh7 {[%clk 0:00:15.9]} 74. Ne6
{[%clk 0:00:15.3]} 74... Kg8 {[%clk 0:00:16.5]} 75. Nf4 {[%clk 0:00:15.3]} 75...
Kh8 {[%clk 0:00:17.4]} 76. Kg6 {[%clk 0:00:15.3]} 76... Kg8 {[%clk 0:00:17.3]}
77. Nd5 {[%clk 0:00:15.4]} 77... Kh8 {[%clk 0:00:18.2]} 78. Nc7 {[%clk
0:00:14.8]} 78... Kg8 {[%clk 0:00:18.9]} 79. Ne8 {[%clk 0:00:14.3]} 79... Kh8
{[%clk 0:00:19.8]} 80. Nd6 {[%clk 0:00:14.5]} 80... Kg8 {[%clk 0:00:20.7]} 81.
h7+ {[%clk 0:00:15]} 81... Kh8 {[%clk 0:00:21.6]} 82. Nf7# {[%clk 0:00:14.9]}
1-0

[Event "*** Titled Tuesday Blitz"]
[Site "Chess.com"]
[Date "2021.03.16"]
[Round "8"]
[White "Agnes66678"]
[Black "Sanyura"]
[Result "1-0"]
[WhiteElo "2457"]
[BlackElo "2610"]
[TimeControl "180+1"]
[EndTime "11:29:40 PDT"]
[Termination "Agnes66678 won by checkmate"]

1. d4 {[%clk 0:03:00.9]} 1... Nf6 {[%clk 0:02:59.5]} 2. c4 {[%clk 0:03:00.8]}
2... g6 {[%clk 0:02:59.7]} 3. Nc3 {[%clk 0:03:00.3]} 3... Bg7 {[%clk 0:02:59.6]}
4. Nf3 {[%clk 0:03:00.8]} 4... d6 {[%clk 0:03:00]} 5. g3 {[%clk 0:03:01]} 5...
O-O {[%clk 0:03:00.7]} 6. Bg2 {[%clk 0:03:01.4]} 6... Nbd7 {[%clk 0:03:01.5]} 7.
O-O {[%clk 0:03:01.9]} 7... e5 {[%clk 0:03:02.3]} 8. e4 {[%clk 0:03:02]} 8...
exd4 {[%clk 0:03:02.8]} 9. Nxd4 {[%clk 0:03:02]} 9... Nc5 {[%clk 0:03:03.7]} 10.
h3 {[%clk 0:03:01.2]} 10... Re8 {[%clk 0:03:03.5]} 11. Re1 {[%clk 0:03:01.4]}
11... Bd7 {[%clk 0:03:03.7]} 12. Kh2 {[%clk 0:03:00.5]} 12... h5 {[%clk
0:03:03.5]} 13. Rb1 {[%clk 0:02:57.5]} 13... a5 {[%clk 0:03:03.1]} 14. Ndb5
{[%clk 0:02:57.5]} 14... Bc6 {[%clk 0:02:58.7]} 15. Qc2 {[%clk 0:02:55.3]} 15...
h4 {[%clk 0:02:48.7]} 16. g4 {[%clk 0:02:51.3]} 16... Nfd7 {[%clk 0:02:49.1]}
17. f4 {[%clk 0:02:48.4]} 17... g5 {[%clk 0:02:47.5]} 18. fxg5 {[%clk
0:02:42.5]} 18... Ne5 {[%clk 0:02:45.7]} 19. Nd5 {[%clk 0:02:39.9]} 19... Bxd5
{[%clk 0:02:31.4]} 20. cxd5 {[%clk 0:02:34.7]} 20... c6 {[%clk 0:02:30.3]} 21.
Nc3 {[%clk 0:02:32.2]} 21... Ncd3 {[%clk 0:02:09.8]} 22. Rd1 {[%clk 0:02:20.3]}
22... Nxc1 {[%clk 0:02:06.4]} 23. Qxc1 {[%clk 0:02:21.2]} 23... Ng6 {[%clk
0:01:56.5]} 24. Kh1 {[%clk 0:02:15]} 24... Be5 {[%clk 0:01:55]} 25. Rf1 {[%clk
0:02:14.7]} 25... Rc8 {[%clk 0:01:51.8]} 26. Rf5 {[%clk 0:02:06.3]} 26... cxd5
{[%clk 0:00:56.2]} 27. exd5 {[%clk 0:02:07.2]} 27... Qc7 {[%clk 0:00:55.1]} 28.
Qf1 {[%clk 0:01:51.4]} 28... Bxc3 {[%clk 0:00:55]} 29. bxc3 {[%clk 0:01:49.6]}
29... Re3 {[%clk 0:00:55.6]} 30. c4 {[%clk 0:01:21.2]} 30... Qxc4 {[%clk
0:00:16.6]} 31. Rxf7 {[%clk 0:01:19.7]} 31... Qxf1+ {[%clk 0:00:16.6]} 32. Rfxf1
{[%clk 0:01:20.6]} 32... Rc7 {[%clk 0:00:14.6]} 33. Rf6 {[%clk 0:01:18.5]} 33...
Kg7 {[%clk 0:00:14.4]} 34. Rxd6 {[%clk 0:01:18]} 34... Re2 {[%clk 0:00:14.8]}
35. Bf1 {[%clk 0:01:06]} 35... Rxa2 {[%clk 0:00:12.6]} 36. Rdb6 {[%clk
0:01:00.7]} 36... Ne5 {[%clk 0:00:10.7]} 37. Rxb7 {[%clk 0:00:56.4]} 37... Rxb7
{[%clk 0:00:11.2]} 38. Rxb7+ {[%clk 0:00:57.1]} 38... Kg6 {[%clk 0:00:11.8]} 39.
Rb6+ {[%clk 0:00:55.2]} 39... Kxg5 {[%clk 0:00:11.9]} 40. Bg2 {[%clk 0:00:44.2]}
40... Kf4 {[%clk 0:00:10.9]} 41. Rb3 {[%clk 0:00:41.9]} 41... a4 {[%clk
0:00:08.7]} 42. Rc3 {[%clk 0:00:39]} 42... Rd2 {[%clk 0:00:06.8]} 43. Ra3 {[%clk
0:00:37.6]} 43... Rd4 {[%clk 0:00:06.9]} 44. Kh2 {[%clk 0:00:37.7]} 44... Kg5
{[%clk 0:00:04.6]} 45. Re3 {[%clk 0:00:36.2]} 45... Nc4 {[%clk 0:00:04.1]} 46.
Re8 {[%clk 0:00:35.2]} 46... a3 {[%clk 0:00:03.5]} 47. Ra8 {[%clk 0:00:34.5]}
47... Rd2 {[%clk 0:00:02.7]} 48. Kg1 {[%clk 0:00:32.1]} 48... a2 {[%clk
0:00:02.3]} 49. Bf1 {[%clk 0:00:30.5]} 49... Rd1 {[%clk 0:00:01.3]} 50. Rxa2
{[%clk 0:00:28.1]} 50... Nd2 {[%clk 0:00:01.9]} 51. Kf2 {[%clk 0:00:17.5]} 51...
Nxf1 {[%clk 0:00:02.5]} 52. Ra5 {[%clk 0:00:15.9]} 52... Nd2 {[%clk 0:00:01.8]}
53. Ke2 {[%clk 0:00:15.4]} 53... Rb1 {[%clk 0:00:01.5]} 54. Kxd2 {[%clk
0:00:14.8]} 54... Kf4 {[%clk 0:00:02.1]} 55. d6 {[%clk 0:00:14.3]} 55... Rb8
{[%clk 0:00:02.1]} 56. Rd5 {[%clk 0:00:14]} 56... Kg3 {[%clk 0:00:02.5]} 57.
Rd3+ {[%clk 0:00:13.8]} 57... Kf4 {[%clk 0:00:03]} 58. d7 {[%clk 0:00:14.7]}
58... Rd8 {[%clk 0:00:02.7]} 59. Kc3 {[%clk 0:00:14.3]} 59... Ke4 {[%clk
0:00:03.2]} 60. Kc4 {[%clk 0:00:14.2]} 60... Ke5 {[%clk 0:00:03.8]} 61. g5
{[%clk 0:00:13.6]} 61... Kf5 {[%clk 0:00:04]} 62. Rd5+ {[%clk 0:00:13.7]} 62...
Ke6 {[%clk 0:00:04]} 63. Kc5 {[%clk 0:00:14.6]} 63... Rxd7 {[%clk 0:00:04]} 64.
Rxd7 {[%clk 0:00:14.6]} 64... Kxd7 {[%clk 0:00:04.9]} 65. Kd5 {[%clk 0:00:15.5]}
65... Ke7 {[%clk 0:00:05.8]} 66. Ke5 {[%clk 0:00:16.4]} 66... Kf7 {[%clk
0:00:06.5]} 67. Kf5 {[%clk 0:00:16.9]} 67... Kg7 {[%clk 0:00:07.2]} 68. Kg4
{[%clk 0:00:16.8]} 68... Kg6 {[%clk 0:00:07.9]} 69. Kxh4 {[%clk 0:00:17.7]}
69... Kh7 {[%clk 0:00:08.8]} 70. Kg4 {[%clk 0:00:17.7]} 70... Kg7 {[%clk
0:00:09.7]} 71. h4 {[%clk 0:00:17.8]} 71... Kh7 {[%clk 0:00:10.6]} 72. h5 {[%clk
0:00:18.7]} 72... Kg7 {[%clk 0:00:11.3]} 73. Kf5 {[%clk 0:00:19.6]} 73... Kh7
{[%clk 0:00:11.7]} 74. g6+ {[%clk 0:00:19.7]} 74... Kg7 {[%clk 0:00:11.9]} 75.
Kg5 {[%clk 0:00:20.6]} 75... Kg8 {[%clk 0:00:12.4]} 76. Kf6 {[%clk 0:00:20.1]}
76... Kf8 {[%clk 0:00:12.7]} 77. g7+ {[%clk 0:00:18.4]} 77... Kg8 {[%clk
0:00:13.2]} 78. h6 {[%clk 0:00:18.8]} 78... Kh7 {[%clk 0:00:13.4]} 79. Kf7
{[%clk 0:00:18.9]} 79... Kxh6 {[%clk 0:00:14]} 80. g8=Q {[%clk 0:00:19.2]} 80...
Kh5 {[%clk 0:00:14.9]} 81. Kf6 {[%clk 0:00:19.5]} 81... Kh4 {[%clk 0:00:15.4]}
82. Kf5 {[%clk 0:00:19.5]} 82... Kh3 {[%clk 0:00:16.1]} 83. Kf4 {[%clk
0:00:19.6]} 83... Kh2 {[%clk 0:00:17]} 84. Kf3 {[%clk 0:00:19.2]} 84... Kh1
{[%clk 0:00:17.9]} 85. Qg2# {[%clk 0:00:19.3]} 1-0

[Event "*** Titled Tuesday Blitz"]
[Site "Chess.com"]
[Date "2021.03.16"]
[Round "8"]
[White "Buffy7"]
[Black "mbachez"]
[Result "1-0"]
[WhiteElo "2627"]
[BlackElo "2487"]
[TimeControl "180+1"]
[EndTime "11:29:41 PDT"]
[Termination "Buffy7 won by resignation"]

1. e4 {[%clk 0:03:00.9]} 1... e6 {[%clk 0:02:58.6]} 2. d4 {[%clk 0:03:00.5]}
2... d5 {[%clk 0:02:58.4]} 3. Nd2 {[%clk 0:03:01.4]} 3... h6 {[%clk 0:02:57.7]}
4. Ngf3 {[%clk 0:03:00.5]} 4... Nf6 {[%clk 0:02:57.4]} 5. Bd3 {[%clk 0:02:59.9]}
5... c5 {[%clk 0:02:57]} 6. e5 {[%clk 0:02:58.7]} 6... Nfd7 {[%clk 0:02:56.4]}
7. c3 {[%clk 0:02:59.2]} 7... Nc6 {[%clk 0:02:54.7]} 8. Nf1 {[%clk 0:02:50.6]}
8... Qb6 {[%clk 0:02:50]} 9. Bc2 {[%clk 0:02:40.1]} 9... g5 {[%clk 0:02:48.3]}
10. h3 {[%clk 0:02:39.3]} 10... cxd4 {[%clk 0:02:45.8]} 11. cxd4 {[%clk
0:02:40.2]} 11... Bb4+ {[%clk 0:02:45]} 12. Ke2 {[%clk 0:02:37.7]} 12... Bf8
{[%clk 0:02:35.4]} 13. a3 {[%clk 0:02:34.4]} 13... a5 {[%clk 0:02:34.4]} 14. Ng3
{[%clk 0:02:34.5]} 14... a4 {[%clk 0:02:27.4]} 15. Rb1 {[%clk 0:02:33.5]} 15...
Qa7 {[%clk 0:02:24.9]} 16. Be3 {[%clk 0:02:33.3]} 16... b6 {[%clk 0:02:24.6]}
17. Kf1 {[%clk 0:02:33.3]} 17... Ba6+ {[%clk 0:02:22.4]} 18. Kg1 {[%clk
0:02:33.8]} 18... b5 {[%clk 0:02:19.4]} 19. h4 {[%clk 0:02:24.9]} 19... g4
{[%clk 0:02:16.1]} 20. Nh2 {[%clk 0:02:23.9]} 20... h5 {[%clk 0:02:16]} 21. Qd2
{[%clk 0:02:23.4]} 21... Nb6 {[%clk 0:02:10.9]} 22. Qe1 {[%clk 0:01:56.9]} 22...
Nc4 {[%clk 0:02:09.3]} 23. Qd1 {[%clk 0:01:54.7]} 23... Nxe3 {[%clk 0:01:58.2]}
24. fxe3 {[%clk 0:01:55.6]} 24... Nxe5 {[%clk 0:01:58.1]} 25. Nhf1 {[%clk
0:01:52.9]} 25... Nc4 {[%clk 0:01:56.8]} 26. Qe2 {[%clk 0:01:52.6]} 26... Bh6
{[%clk 0:01:48.6]} 27. Bd3 {[%clk 0:01:53.5]} 27... b4 {[%clk 0:01:38.8]} 28.
Nxh5 {[%clk 0:01:53.3]} 28... Nxe3 {[%clk 0:01:24]} 29. Nxe3 {[%clk 0:01:53.1]}
29... Qxd4 {[%clk 0:01:19.9]} 30. Bxa6 {[%clk 0:01:52.2]} 30... Bxe3+ {[%clk
0:01:13]} 31. Kh2 {[%clk 0:01:52.5]} 31... Rxh5 {[%clk 0:00:52.5]} 32. g3 {[%clk
0:01:52.9]} 32... Rxa6 {[%clk 0:00:46.5]} 33. Rbd1 {[%clk 0:01:53.4]} 33... Qe5
{[%clk 0:00:29.1]} 34. Qxg4 {[%clk 0:01:48.1]} 34... Rc6 {[%clk 0:00:23.2]} 35.
Rhe1 {[%clk 0:01:46.7]} 35... Rc2+ {[%clk 0:00:19.1]} 36. Kh3 {[%clk 0:01:47.1]}
36... d4 {[%clk 0:00:14.5]} 37. Rxe3 {[%clk 0:01:43.3]} 37... Qxe3 {[%clk
0:00:10.7]} 38. Qxh5 {[%clk 0:01:43.7]} 38... Qe2 {[%clk 0:00:10.5]} 39. Qxe2
{[%clk 0:01:39.6]} 39... Rxe2 {[%clk 0:00:10]} 40. Rxd4 {[%clk 0:01:40.5]} 40...
Rxb2 {[%clk 0:00:09.8]} 41. axb4 {[%clk 0:01:39.8]} 41... a3 {[%clk 0:00:09.7]}
42. Rd3 {[%clk 0:01:39.8]} 42... a2 {[%clk 0:00:09.7]} 43. Ra3 {[%clk
0:01:40.2]} 43... Kf8 {[%clk 0:00:09.1]} 44. b5 {[%clk 0:01:37.5]} 44... Kg7
{[%clk 0:00:08.6]} 45. b6 {[%clk 0:01:37.9]} 45... f5 {[%clk 0:00:08.8]} 46. b7
{[%clk 0:01:37.8]} 46... Rxb7 {[%clk 0:00:08.6]} 47. Rxa2 {[%clk 0:01:38]} 47...
e5 {[%clk 0:00:07.6]} 48. Ra5 {[%clk 0:01:36.6]} 48... Re7 {[%clk 0:00:07.1]}
49. Kg2 {[%clk 0:01:33.6]} 49... Kg6 {[%clk 0:00:07.3]} 50. Ra6+ {[%clk
0:01:32.2]} 50... Kg7 {[%clk 0:00:05.1]} 51. Kf3 {[%clk 0:01:31.7]} 51... Rb7
{[%clk 0:00:05]} 52. h5 {[%clk 0:01:31.2]} 52... Rb3+ {[%clk 0:00:04.6]} 53. Kg2
{[%clk 0:01:30.9]} 53... e4 {[%clk 0:00:04.9]} 54. Rg6+ {[%clk 0:01:28.5]} 54...
Kh7 {[%clk 0:00:04.9]} 55. Rc6 {[%clk 0:01:29.4]} 55... Kg7 {[%clk 0:00:03.7]}
56. Re6 {[%clk 0:01:27.5]} 56... Rb2+ {[%clk 0:00:02.4]} 57. Kh3 {[%clk
0:01:27.4]} 57... Kf7 {[%clk 0:00:02.8]} 58. Rc6 {[%clk 0:01:19.2]} 58... Rb3
{[%clk 0:00:02.1]} 59. Kh4 {[%clk 0:01:17]} 59... e3 {[%clk 0:00:02.4]} 60. Rc7+
{[%clk 0:01:12.3]} 60... Kf6 {[%clk 0:00:01.7]} 61. Rc6+ {[%clk 0:01:12.1]}
61... Kf7 {[%clk 0:00:01.7]} 62. Rc2 {[%clk 0:01:10.5]} 62... Kf6 {[%clk
0:00:02.6]} 63. Re2 {[%clk 0:01:06.6]} 63... f4 {[%clk 0:00:02.9]} 64. gxf4
{[%clk 0:01:05.3]} 64... Kf5 {[%clk 0:00:03.8]} 65. Kg3 {[%clk 0:01:04.2]} 65...
Ke4 {[%clk 0:00:03.8]} 66. Kg4 {[%clk 0:01:03.5]} 66... Rb8 {[%clk 0:00:04.5]}
67. h6 {[%clk 0:01:00.2]} 67... Rg8+ {[%clk 0:00:05.2]} 68. Kh5 {[%clk
0:01:00.7]} 68... Kf3 {[%clk 0:00:05.5]} 69. Ra2 {[%clk 0:01:00.4]} 69... e2
{[%clk 0:00:04.9]} 70. Ra1 {[%clk 0:01:00.7]} 70... Kf2 {[%clk 0:00:04.7]} 71.
h7 {[%clk 0:00:59.9]} 71... Rd8 {[%clk 0:00:04.5]} 72. f5 {[%clk 0:00:53]} 72...
Ke3 {[%clk 0:00:03.8]} 73. Re1 {[%clk 0:00:52.3]} 73... Kf2 {[%clk 0:00:03.7]}
74. Rxe2+ {[%clk 0:00:49.9]} 74... Kxe2 {[%clk 0:00:04.4]} 75. Kg6 {[%clk
0:00:50]} 75... Kf3 {[%clk 0:00:04.5]} 76. f6 {[%clk 0:00:50.1]} 76... Kf4
{[%clk 0:00:04.7]} 77. f7 {[%clk 0:00:49.4]} 77... Kg4 {[%clk 0:00:04.4]} 78.
Kg7 {[%clk 0:00:49.7]} 78... Kg5 {[%clk 0:00:04]} 79. f8=Q {[%clk 0:00:47.5]}
79... Rd7+ {[%clk 0:00:03.9]} 80. Qf7 {[%clk 0:00:45.7]} 80... Rxf7+ {[%clk
0:00:03.9]} 81. Kxf7 {[%clk 0:00:46.6]} 1-0

[Event "*** Titled Tuesday Blitz"]
[Site "Chess.com"]
[Date "2021.03.16"]
[Round "8"]
[White "rpragchess"]
[Black "Onischuk_V"]
[Result "1/2-1/2"]
[WhiteElo "2919"]
[BlackElo "2843"]
[TimeControl "180+1"]
[EndTime "11:29:46 PDT"]
[Termination "Game drawn by repetition"]

1. c4 {[%clk 0:03:00.9]} 1... d6 {[%clk 0:03:00.6]} 2. Nc3 {[%clk 0:03:00.8]}
2... g6 {[%clk 0:03:01.1]} 3. g3 {[%clk 0:02:54.8]} 3... Bg7 {[%clk 0:03:01.4]}
4. Bg2 {[%clk 0:02:55.2]} 4... Nf6 {[%clk 0:03:02]} 5. Nf3 {[%clk 0:02:55.7]}
5... O-O {[%clk 0:03:02.5]} 6. O-O {[%clk 0:02:56.2]} 6... Nc6 {[%clk
0:03:02.6]} 7. d3 {[%clk 0:02:53.1]} 7... e5 {[%clk 0:03:02.1]} 8. e4 {[%clk
0:02:52.8]} 8... Bg4 {[%clk 0:02:52.9]} 9. h3 {[%clk 0:02:52.3]} 9... Bxf3
{[%clk 0:02:52.9]} 10. Bxf3 {[%clk 0:02:52.7]} 10... Nd7 {[%clk 0:02:53.6]} 11.
Bg2 {[%clk 0:02:49.8]} 11... Nc5 {[%clk 0:02:52.9]} 12. f4 {[%clk 0:02:45.4]}
12... exf4 {[%clk 0:02:51.4]} 13. gxf4 {[%clk 0:02:46.3]} 13... f5 {[%clk
0:02:45.9]} 14. Be3 {[%clk 0:02:43.6]} 14... Bd4 {[%clk 0:02:41.9]} 15. Qd2
{[%clk 0:02:39.5]} 15... Qf6 {[%clk 0:02:30.8]} 16. Rae1 {[%clk 0:02:30.6]}
16... Qg7 {[%clk 0:02:25.2]} 17. Nd5 {[%clk 0:02:24.2]} 17... Bxe3+ {[%clk
0:02:21.7]} 18. Rxe3 {[%clk 0:02:21.7]} 18... Nd4 {[%clk 0:02:14.8]} 19. e5
{[%clk 0:02:07.5]} 19... dxe5 {[%clk 0:02:02.5]} 20. Rxe5 {[%clk 0:01:56.1]}
20... Nce6 {[%clk 0:01:57.3]} 21. Qe3 {[%clk 0:01:32.7]} 21... Rae8 {[%clk
0:01:53.9]} 22. Nc3 {[%clk 0:00:58.8]} 22... c6 {[%clk 0:01:49.1]} 23. Rf2
{[%clk 0:00:55.7]} 23... Re7 {[%clk 0:01:43.8]} 24. Bd5 {[%clk 0:00:49.4]} 24...
cxd5 {[%clk 0:01:37.7]} 25. cxd5 {[%clk 0:00:50.3]} 25... Rfe8 {[%clk
0:01:34.8]} 26. dxe6 {[%clk 0:00:50.3]} 26... Nc6 {[%clk 0:01:33.7]} 27. Nd5
{[%clk 0:00:45]} 27... Nxe5 {[%clk 0:01:33.3]} 28. Nxe7+ {[%clk 0:00:44.7]}
28... Qxe7 {[%clk 0:01:32.7]} 29. Qxe5 {[%clk 0:00:28]} 29... Qxe6 {[%clk
0:01:30.3]} 30. Qxe6+ {[%clk 0:00:21.8]} 30... Rxe6 {[%clk 0:01:30]} 31. Rc2
{[%clk 0:00:22.4]} 31... Re7 {[%clk 0:01:22.9]} 32. Kf2 {[%clk 0:00:22.6]} 32...
Kf7 {[%clk 0:01:23]} 33. Rc8 {[%clk 0:00:21.7]} 33... Ke6 {[%clk 0:01:17.8]} 34.
Rd8 {[%clk 0:00:20.2]} 34... Rc7 {[%clk 0:01:16.5]} 35. Re8+ {[%clk 0:00:18.7]}
35... Kd5 {[%clk 0:01:13.9]} 36. Rd8+ {[%clk 0:00:17.9]} 36... Ke6 {[%clk
0:01:11.6]} 37. Re8+ {[%clk 0:00:18]} 37... Kf6 {[%clk 0:01:04.7]} 38. Re2
{[%clk 0:00:16.3]} 38... g5 {[%clk 0:01:01.7]} 39. Kf3 {[%clk 0:00:15.5]} 39...
h6 {[%clk 0:01:01.2]} 40. d4 {[%clk 0:00:12.9]} 40... Rd7 {[%clk 0:00:56.7]} 41.
Rd2 {[%clk 0:00:12.4]} 41... Re7 {[%clk 0:00:57]} 42. d5 {[%clk 0:00:12.2]}
42... Rd7 {[%clk 0:00:53.1]} 43. Kg3 {[%clk 0:00:10.8]} 43... Ke7 {[%clk
0:00:48]} 44. Re2+ {[%clk 0:00:08.6]} 44... Kf7 {[%clk 0:00:45.4]} 45. Re5
{[%clk 0:00:07.6]} 45... Kg6 {[%clk 0:00:39.5]} 46. Re6+ {[%clk 0:00:07.9]}
46... Kf7 {[%clk 0:00:35.7]} 47. Rxh6 {[%clk 0:00:08]} 47... gxf4+ {[%clk
0:00:34.8]} 48. Kxf4 {[%clk 0:00:07.9]} 48... Rxd5 {[%clk 0:00:35.2]} 49. Rh7+
{[%clk 0:00:08.3]} 49... Kf6 {[%clk 0:00:35.7]} 50. Rxb7 {[%clk 0:00:09.2]}
50... Rd4+ {[%clk 0:00:36.1]} 51. Kf3 {[%clk 0:00:08.8]} 51... a5 {[%clk
0:00:35.7]} 52. Rb3 {[%clk 0:00:06.2]} 52... Kg5 {[%clk 0:00:33.3]} 53. Re3
{[%clk 0:00:06.1]} 53... Rf4+ {[%clk 0:00:31.7]} 54. Kg2 {[%clk 0:00:06.2]}
54... Rc4 {[%clk 0:00:31.1]} 55. Rg3+ {[%clk 0:00:05.4]} 55... Kf4 {[%clk
0:00:30.3]} 56. Rf3+ {[%clk 0:00:06.3]} 56... Ke4 {[%clk 0:00:30.3]} 57. Kg3
{[%clk 0:00:05]} 57... Rc2 {[%clk 0:00:27.2]} 58. Rf4+ {[%clk 0:00:05.4]} 58...
Ke5 {[%clk 0:00:26.5]} 59. Rf2 {[%clk 0:00:05.5]} 59... Rc1 {[%clk 0:00:26.7]}
60. h4 {[%clk 0:00:05.1]} 60... Rg1+ {[%clk 0:00:26]} 61. Kf3 {[%clk 0:00:05.5]}
61... Rh1 {[%clk 0:00:24.9]} 62. Kg3 {[%clk 0:00:04.8]} 62... Rg1+ {[%clk
0:00:25]} 63. Rg2 {[%clk 0:00:03.1]} 63... f4+ {[%clk 0:00:24.6]} 64. Kf3 {[%clk
0:00:03.1]} 64... Rf1+ {[%clk 0:00:23.5]} 65. Rf2 {[%clk 0:00:01.8]} 65... Rh1
{[%clk 0:00:23.6]} 66. Rc2 {[%clk 0:00:01.7]} 66... Rh3+ {[%clk 0:00:22.2]} 67.
Kg2 {[%clk 0:00:02.2]} 67... Rg3+ {[%clk 0:00:21.5]} 68. Kf2 {[%clk 0:00:02]}
68... Kf5 {[%clk 0:00:20.7]} 69. Rc5+ {[%clk 0:00:02.3]} 69... Kg4 {[%clk
0:00:19]} 70. Rxa5 {[%clk 0:00:02.1]} 70... Rd3 {[%clk 0:00:15.6]} 71. Rg5+
{[%clk 0:00:02]} 71... Kxh4 {[%clk 0:00:15.8]} 72. Re5 {[%clk 0:00:02.9]} 72...
Kg4 {[%clk 0:00:15.1]} 73. Re2 {[%clk 0:00:03.2]} 73... Rh3 {[%clk 0:00:14.8]}
74. Kf1 {[%clk 0:00:03]} 74... Rh1+ {[%clk 0:00:14.4]} 75. Kf2 {[%clk
0:00:02.3]} 75... Rh2+ {[%clk 0:00:14.1]} 76. Kf1 {[%clk 0:00:02.7]} 76... Rh1+
{[%clk 0:00:13.8]} 77. Kf2 {[%clk 0:00:03.3]} 77... Rh2+ {[%clk 0:00:10.3]} 78.
Kf1 {[%clk 0:00:03.4]} 78... Rh1+ {[%clk 0:00:10.5]} 1/2-1/2